bitfinex/quotes_BTCUSD_20251230
["timestamp","ask_amount","ask_price","bid_price","bid_amount"]
[1767055501441,0.0001463,87149.0,87141.0,0.01147565]
[1767055501442,0.0118263,87158.0,87151.0,0.06884588]
[1767055501662,0.21646602,87172.0,87127.0,0.0001463]
[1767055501663,0.04592,87173.0,87161.0,0.01147302]
[1767055501894,0.04592,87173.0,87149.0,0.14737]
[1767055501895,0.01148,87172.0,87162.0,0.01147288]
[1767055502099,0.00036048,87172.0,87164.0,0.01147262]
[1767055502316,4.8e-07,87172.0,87165.0,0.01147249]
[1767055502526,4.8e-07,87172.0,87161.0,0.01148]
[1767055502527,4.8e-07,87172.0,87161.0,0.15885]
[1767055502761,4.8e-07,87172.0,87162.0,0.01147288]
[1767055503001,4.8e-07,87172.0,87161.0,0.01148]
[1767055503413,0.52236384,87171.0,87161.0,0.01148]
[1767055503858,0.52236384,87171.0,87161.0,0.02295302]
[1767055504066,0.52236384,87171.0,87161.0,0.01148]
[1767055505123,4.8e-07,87172.0,87161.0,0.01148]
[1767055505332,0.52236384,87171.0,87161.0,0.01148]
[1767055506363,0.52236384,87171.0,87161.0,0.02295302]
[1767055506577,0.52236384,87171.0,87161.0,0.01148]
[1767055506788,0.52236384,87171.0,87161.0,0.02295302]
[1767055506995,0.52236384,87171.0,87161.0,0.01148]
[1767055507195,0.01147205,87172.0,87161.0,0.01148]
[1767055507394,4.8e-07,87172.0,87161.0,0.01148]
[1767055507899,4.8e-07,87172.0,87157.0,0.01147354]
[1767055508052,0.01147183,87170.0,87158.0,0.01148]
[1767055508253,0.52236384,87171.0,87159.0,0.01147328]
[1767055508710,0.01147205,87172.0,87159.0,0.01147328]
[1767055509462,4.8e-07,87172.0,87159.0,0.01147328]
[1767055509686,4.8e-07,87172.0,87160.0,0.01147315]
[1767055510731,4.8e-07,87172.0,87161.0,0.01147302]
[1767055510938,4.8e-07,87172.0,87160.0,0.01147315]
[1767055511153,4.8e-07,87172.0,87161.0,0.01147302]
[1767055511574,4.8e-07,87172.0,87162.0,0.01147288]
[1767055511783,4.8e-07,87172.0,87163.0,0.01147275]
[1767055511985,4.8e-07,87172.0,87164.0,0.06883544]
[1767055512159,4.8e-07,87172.0,87165.0,0.01147249]
[1767055512364,4.8e-07,87172.0,87164.0,0.01147262]
[1767055512532,4.8e-07,87172.0,87162.0,0.01147288]
[1767055512732,4.8e-07,87172.0,87164.0,0.01147262]
[1767055512974,4.8e-07,87172.0,87163.0,0.01147275]
[1767055513203,4.8e-07,87172.0,87164.0,0.01147262]
[1767055513546,4.8e-07,87172.0,87166.0,0.01147236]
[1767055513751,4.8e-07,87172.0,87165.0,0.01147249]
[1767055514467,0.0001463,87175.0,87165.0,0.01147249]
[1767055514468,0.00053136,87180.0,87166.0,0.01147236]
[1767055514675,0.00063942,87180.0,87169.0,0.06883144]
[1767055514875,0.00063942,87180.0,87172.0,0.01147157]
[1767055515076,0.00063942,87180.0,87174.0,0.01147131]
[1767055515326,0.00063942,87180.0,87171.0,0.0114717]
[1767055515517,0.00063942,87180.0,87170.0,0.01147183]
[1767055515720,0.00079772,87180.0,87171.0,0.0114717]
[1767055516065,0.00079772,87180.0,87170.0,0.01147183]
[1767055516066,5e-06,87186.0,87181.0,0.01147038]
[1767055516242,0.01148,87189.0,87183.0,0.06882066]
[1767055516380,0.000155,87195.0,87183.0,0.06882066]
[1767055516381,0.011635,87195.0,87185.0,0.01146986]
[1767055516583,5e-06,87195.0,87188.0,0.01146946]
[1767055516897,5e-06,87195.0,87184.0,0.06881996]
[1767055517099,5.37e-05,87195.0,87187.0,0.01146959]
[1767055517303,0.00055,87187.0,87181.0,0.06882217]
[1767055517499,0.01146867,87194.0,87179.0,0.02295065]
[1767055517683,0.01146867,87194.0,87180.0,0.01147052]
[1767055517888,0.01146867,87194.0,87179.0,0.02255065]
[1767055517889,0.01146881,87193.0,87179.0,0.02255065]
[1767055518103,0.01146867,87194.0,87180.0,0.01147052]
[1767055518315,0.01152224,87195.0,87181.0,0.01147038]
[1767055518536,0.01146867,87194.0,87180.0,0.01147052]
[1767055518799,0.01146946,87188.0,87181.0,0.01148]
[1767055519401,0.01146986,87185.0,87167.0,0.01147223]
[1767055519559,0.01146986,87185.0,87172.0,0.01148]
[1767055519758,0.01146959,87187.0,87173.0,0.01147144]
[1767055519938,0.01146959,87187.0,87174.0,0.01147131]
[1767055520138,0.01146959,87187.0,87172.0,0.01148]
[1767055520338,0.01146946,87188.0,87165.0,0.01147249]
[1767055520339,0.52190307,87182.0,87165.0,0.01147249]
[1767055520565,0.01147038,87181.0,87168.0,0.01147209]
[1767055520813,0.01147038,87181.0,87167.0,0.01147223]
[1767055521012,0.01147025,87182.0,87167.0,0.01147223]
[1767055521013,0.01147025,87182.0,87169.0,0.01147196]
[1767055521352,0.01147012,87183.0,87169.0,0.01147196]
[1767055521555,0.01146999,87184.0,87170.0,0.01147183]
[1767055521752,0.02294986,87185.0,87172.0,0.01147157]
[1767055521956,0.02294986,87185.0,87171.0,0.0114717]
[1767055522179,0.01148,87185.0,87171.0,0.0114717]
[1767055522353,0.02294986,87185.0,87172.0,0.01147157]
[1767055522558,0.02294986,87185.0,87171.0,0.0114717]
[1767055522779,0.02294986,87185.0,87172.0,0.01147157]
[1767055523350,0.01148,87185.0,87172.0,0.01147157]
[1767055523548,0.01148,87185.0,87174.0,0.01147131]
[1767055523853,0.01148,87185.0,87166.0,0.06937302]
[1767055524073,0.01147038,87181.0,87167.0,0.01147223]
[1767055524277,0.01147025,87182.0,87169.0,0.01147196]
[1767055524477,0.01147012,87183.0,87169.0,0.01147196]
[1767055524732,0.01147025,87182.0,87168.0,0.01147209]
[1767055524883,0.01147025,87182.0,87169.0,0.01147196]
[1767055525080,0.01146999,87184.0,87170.0,0.01147183]
[1767055525951,0.02294986,87185.0,87171.0,0.0114717]
[1767055526526,0.02294986,87185.0,87172.0,0.01147157]
[1767055527242,0.01148,87185.0,87173.0,0.01147144]
[1767055527444,0.01148,87185.0,87175.0,0.01147117]
[1767055527740,0.01148,87185.0,87173.0,0.01147144]
[1767055527947,0.01168,87185.0,87172.0,0.15140157]
[1767055528333,0.01168,87185.0,87173.0,0.01147144]
[1767055528733,0.0002,87185.0,87173.0,0.01147144]
[1767055529001,0.0002,87185.0,87175.0,0.01147117]
[1767055529579,0.01148,87190.0,87178.0,0.15140078]
[1767055529785,0.0114701,87191.0,87185.0,0.0002]
[1767055529987,1.03e-06,87191.0,87182.0,0.01147025]
[1767055530190,3.7e-06,87195.0,87184.0,0.01146999]
[1767055530441,3.7e-06,87195.0,87186.0,0.01146973]
[1767055530596,3.7e-06,87195.0,87184.0,0.13993]
[1767055530798,0.01147224,87195.0,87184.0,0.13993]
[1767055531020,0.01147224,87195.0,87182.0,0.01148]
[1767055531021,0.01146867,87194.0,87182.0,0.01148]
[1767055531241,0.01147224,87195.0,87182.0,0.01148]
[1767055531413,3.7e-06,87195.0,87182.0,0.02295025]
[1767055531639,3.7e-06,87195.0,87183.0,0.01147012]
[1767055532295,3.7e-06,87195.0,87182.0,0.01148]
[1767055532494,0.01147224,87195.0,87182.0,0.02295025]
[1767055532700,3.7e-06,87195.0,87182.0,0.02295025]
[1767055533644,3.7e-06,87195.0,87183.0,0.01147012]
[1767055534262,3.7e-06,87195.0,87182.0,0.02295025]
[1767055534413,3.7e-06,87195.0,87183.0,0.01147012]
[1767055534629,3.7e-06,87195.0,87184.0,0.01146999]
[1767055534823,3.7e-06,87195.0,87183.0,0.01147012]
[1767055535906,3.7e-06,87195.0,87186.0,0.01146973]
[1767055536978,3.7e-06,87195.0,87189.0,0.01146933]
[1767055537192,0.06898607,87205.0,87191.0,0.01146907]
[1767055537193,0.0001825,87205.0,87191.0,0.01146907]
[1767055537382,0.0001825,87205.0,87193.0,0.01146881]
[1767055537586,0.0001825,87205.0,87194.0,0.01146867]
[1767055538215,0.0001825,87205.0,87195.0,0.01146854]
[1767055538397,2.5e-06,87205.0,87196.0,0.01148]
[1767055541382,0.01146973,87205.0,87196.0,0.01148]
[1767055541592,0.01146749,87203.0,87195.0,0.01148]
[1767055541766,0.01071947,87202.0,87195.0,0.01148]
[1767055541911,0.01071947,87201.0,87195.0,0.01148]
[1767055542113,0.01071947,87200.0,87195.0,0.01148]
[1767055542323,0.01071947,87199.0,87195.0,0.01148]
[1767055542513,0.01071947,87198.0,87195.0,0.01148]
[1767055542713,0.01071947,87197.0,87195.0,0.01148]
[1767055542944,0.01146736,87204.0,87195.0,0.01148]
[1767055543186,0.01072226,87203.0,87195.0,0.01148]
[1767055543363,0.01072226,87202.0,87195.0,0.01148]
[1767055543578,0.01072226,87201.0,87195.0,0.01148]
[1767055543777,0.01072226,87200.0,87195.0,0.01148]
[1767055543964,0.01072226,87199.0,87195.0,0.01148]
[1767055544165,0.01072226,87198.0,87195.0,0.01148]
[1767055544362,0.01072226,87197.0,87195.0,0.01148]
[1767055544649,0.01146736,87204.0,87195.0,0.01148]
[1767055544876,0.02219594,87203.0,87195.0,0.01148]
[1767055545090,0.01072845,87202.0,87195.0,0.01148]
[1767055545297,0.01072845,87201.0,87195.0,0.01148]
[1767055545533,0.01072845,87200.0,87195.0,0.01148]
[1767055545686,0.01072845,87199.0,87195.0,0.01148]
[1767055545886,0.01072845,87198.0,87195.0,0.01148]
[1767055546081,0.01146762,87202.0,87195.0,0.01148]
[1767055546341,0.01146973,87205.0,87183.0,0.20875021]
[1767055546342,0.01146828,87197.0,87188.0,0.01148]
[1767055546532,0.01146881,87193.0,87180.0,0.01147052]
[1767055546734,0.01073024,87192.0,87182.0,0.01148]
[1767055546942,0.52190307,87192.0,87180.0,5.37e-05]
[1767055547142,0.02219949,87191.0,87180.0,0.0115337]
[1767055547400,0.52190307,87192.0,87180.0,0.0115337]
[1767055547598,0.0107303,87191.0,87180.0,0.02300422]
[1767055547796,0.01146881,87193.0,87180.0,0.02300422]
[1767055548002,0.0107303,87192.0,87180.0,0.02300422]
[1767055548328,0.0107303,87191.0,87180.0,0.0115337]
[1767055548672,0.01146881,87193.0,87180.0,0.02300422]
[1767055548807,0.01073032,87192.0,87180.0,0.02300422]
[1767055549011,0.01073032,87191.0,87180.0,0.02300422]
[1767055549259,0.06881267,87194.0,87180.0,0.0115337]
[1767055549558,0.01146894,87192.0,87180.0,0.0115337]
[1767055549764,0.01146881,87193.0,87180.0,0.0115337]
[1767055549984,0.02219937,87192.0,87180.0,0.0115337]
[1767055550186,0.01146894,87192.0,87180.0,0.0115337]
[1767055550390,0.01146881,87193.0,87180.0,0.0115337]
[1767055550587,0.02219949,87192.0,87180.0,0.0115337]
[1767055550811,0.01146881,87193.0,87180.0,0.0115337]
[1767055551012,0.02219949,87192.0,87180.0,0.0115337]
[1767055551207,0.01146894,87192.0,87180.0,0.0115337]
[1767055552528,0.01146881,87193.0,87180.0,0.0115337]
[1767055552704,0.01146881,87193.0,87180.0,0.02300422]
[1767055552945,0.01146881,87193.0,87180.0,0.0115337]
[1767055553835,0.01146881,87193.0,87180.0,0.02300422]
[1767055554376,0.01146881,87193.0,87180.0,0.0115337]
[1767055555352,0.01146894,87192.0,87180.0,0.0115337]
[1767055555575,0.52190307,87190.0,87180.0,0.0115337]
[1767055558183,0.52190307,87190.0,87180.0,0.02300422]
[1767055558605,0.52190307,87190.0,87181.0,0.01147038]
[1767055558812,0.52135407,87190.0,87180.0,0.02300422]
[1767055558985,0.01148,87194.0,87182.0,0.01147025]
[1767055559192,0.01148,87194.0,87181.0,0.01147038]
[1767055559375,0.01148,87194.0,87182.0,0.01147025]
[1767055559996,0.01148,87194.0,87181.0,0.01147038]
[1767055560221,0.01148,87194.0,87182.0,0.01147025]
[1767055560401,0.01148,87194.0,87183.0,0.0688207]
[1767055560617,0.01148,87194.0,87184.0,0.01146999]
[1767055561262,0.01148,87194.0,87184.0,0.01078182]
[1767055561654,0.01148,87194.0,87184.0,1e-08]
[1767055561820,0.01148,87194.0,87184.0,0.01147]
[1767055562016,0.01148,87194.0,87185.0,0.01146986]
[1767055562226,0.01148,87195.0,87185.0,0.0107817]
[1767055562424,0.01074087,87194.0,87185.0,0.0107817]
[1767055562741,0.01148,87195.0,87184.0,1e-08]
[1767055562981,0.01148,87195.0,87184.0,0.01147]
[1767055563685,0.01148,87195.0,87185.0,0.01146986]
[1767055563887,0.01148,87195.0,87184.0,0.01147]
[1767055564053,0.01148,87195.0,87185.0,0.01146986]
[1767055564261,0.01074204,87194.0,87185.0,0.01146986]
[1767055564436,0.01148,87195.0,87185.0,0.01146986]
[1767055564808,0.01074204,87194.0,87185.0,0.01146986]
[1767055564960,0.01148,87195.0,87185.0,0.01146986]
[1767055565125,0.01074203,87194.0,87184.0,0.01147]
[1767055565320,0.01148,87195.0,87185.0,0.01146986]
[1767055565529,0.01074268,87194.0,87185.0,0.01146986]
[1767055565728,0.01148,87195.0,87185.0,0.01146986]
[1767055565925,0.01074268,87194.0,87185.0,0.01146986]
[1767055566125,0.01148,87195.0,87185.0,0.01146986]
[1767055566355,0.01074279,87194.0,87185.0,0.01146986]
[1767055566631,0.01148,87195.0,87185.0,0.01146986]
[1767055566832,0.01074279,87194.0,87185.0,0.01146986]
[1767055567033,0.01148,87195.0,87185.0,0.01146986]
[1767055567234,0.0107429,87194.0,87185.0,0.01146986]
[1767055567442,0.01148,87195.0,87185.0,0.01146986]
[1767055567666,0.01074345,87194.0,87184.0,0.01147]
[1767055567861,0.01148,87195.0,87184.0,0.01147]
[1767055568109,0.01074361,87194.0,87184.0,0.01147]
[1767055568318,0.01148,87195.0,87185.0,0.01146986]
[1767055568517,0.01074391,87194.0,87185.0,0.01146986]
[1767055568773,0.01148,87195.0,87185.0,0.01146986]
[1767055568967,0.01074392,87194.0,87185.0,0.01146986]
[1767055569108,0.01148,87195.0,87185.0,0.01146986]
[1767055569318,0.01074429,87194.0,87185.0,0.01146986]
[1767055569520,0.01148,87195.0,87185.0,0.01146986]
[1767055569763,0.0107443,87194.0,87185.0,0.01146986]
[1767055569963,0.01148,87195.0,87185.0,0.01146986]
[1767055570261,0.0107443,87194.0,87185.0,0.01146986]
[1767055570487,0.01148,87195.0,87186.0,0.01146973]
[1767055570693,0.01074473,87194.0,87187.0,0.01146959]
[1767055570870,0.01148,87195.0,87187.0,0.01146959]
[1767055571075,0.01074474,87194.0,87187.0,0.01146959]
[1767055571400,0.01148,87195.0,87187.0,0.01146959]
[1767055571530,0.0107453,87194.0,87186.0,0.01146973]
[1767055571734,0.01148,87195.0,87186.0,0.01146973]
[1767055571958,0.01074531,87194.0,87187.0,0.01146959]
[1767055572131,0.01148,87195.0,87187.0,0.01146959]
[1767055572319,0.01074591,87194.0,87186.0,0.01146973]
[1767055572700,0.01148,87195.0,87185.0,0.01146986]
[1767055572877,0.01074589,87194.0,87185.0,0.01146986]
[1767055573079,0.01148,87195.0,87186.0,0.01146973]
[1767055573234,0.01074601,87194.0,87186.0,0.01146973]
[1767055573443,0.01074601,87193.0,87185.0,0.01146986]
[1767055573692,0.01148,87195.0,87185.0,0.01146986]
[1767055573880,0.01074667,87194.0,87185.0,0.01146986]
[1767055574083,0.01074667,87193.0,87185.0,0.01146986]
[1767055574280,0.01148,87195.0,87185.0,0.01146986]
[1767055574454,0.01074758,87194.0,87185.0,0.01146986]
[1767055574658,0.01074758,87193.0,87186.0,0.01146973]
[1767055574881,0.01148,87195.0,87186.0,0.01146973]
[1767055575099,0.01074759,87194.0,87186.0,0.01146973]
[1767055575295,0.01074759,87193.0,87186.0,0.01146973]
[1767055575474,0.01148,87195.0,87187.0,0.01146959]
[1767055575676,0.01074889,87194.0,87187.0,0.01146959]
[1767055575893,0.01074889,87193.0,87187.0,0.01146959]
[1767055576088,0.01148,87195.0,87184.0,1e-08]
[1767055576353,0.01074896,87194.0,87184.0,1e-08]
[1767055576555,0.01074896,87193.0,87184.0,1e-08]
[1767055576694,0.01074896,87192.0,87184.0,1e-08]
[1767055576888,0.01148,87195.0,87184.0,1e-08]
[1767055577094,0.06881286,87193.0,87184.0,1e-08]
[1767055577276,0.02222045,87192.0,87184.0,1e-08]
[1767055577477,0.01146933,87189.0,87184.0,1e-08]
[1767055577672,0.0114692,87190.0,87184.0,1e-08]
[1767055578085,0.01146933,87189.0,87184.0,1e-08]
[1767055578532,0.0114692,87190.0,87184.0,1e-08]
[1767055579311,0.0114692,87190.0,87184.0,8.681e-05]
[1767055579528,0.0114692,87190.0,87180.0,0.0115337]
[1767055579734,0.53303269,87190.0,87180.0,0.0115337]
[1767055580166,0.52156349,87190.0,87180.0,0.0115337]
[1767055580356,0.53303269,87190.0,87180.0,0.0115337]
[1767055581282,0.01146933,87189.0,87180.0,0.0115337]
[1767055581488,0.52156349,87190.0,87180.0,0.0115337]
[1767055583149,0.52156349,87190.0,87180.0,0.02300422]
[1767055583355,0.01074915,87189.0,87180.0,0.0115337]
[1767055583560,0.52156349,87190.0,87180.0,0.0115337]
[1767055583782,0.01074925,87189.0,87180.0,0.02300422]
[1767055583993,0.52156349,87190.0,87180.0,0.02300422]
[1767055584202,0.01074926,87189.0,87180.0,0.02300422]
[1767055584376,0.52156349,87190.0,87180.0,0.02300422]
[1767055584707,0.01074865,87189.0,87180.0,0.02300422]
[1767055584888,0.52156349,87190.0,87180.0,0.0115337]
[1767055585059,0.01074858,87189.0,87180.0,0.0115337]
[1767055585387,0.52156349,87190.0,87180.0,0.0115337]
[1767055585925,0.52156349,87190.0,87180.0,0.02300422]
[1767055587697,0.52156349,87190.0,87180.0,0.0115337]
[1767055592789,0.52156349,87190.0,87180.0,5.37e-05]
[1767055593136,0.53303269,87190.0,87181.0,0.01148]
[1767055593483,0.52156349,87190.0,87181.0,0.01148]
[1767055594084,0.01146946,87188.0,87181.0,0.01148]
[1767055594284,0.53303269,87190.0,87180.0,5.37e-05]
[1767055594896,0.59037936,87190.0,87180.0,5.37e-05]
[1767055595109,5.3e-05,87180.0,87168.0,0.01147209]
[1767055595314,0.01147091,87177.0,87168.0,0.00010806]
[1767055595520,0.01147091,87177.0,87162.0,0.01147288]
[1767055595521,0.01147131,87174.0,87160.0,0.01147315]
[1767055595778,0.00010791,87174.0,87162.0,0.01147288]
[1767055595973,0.52156349,87172.0,87163.0,0.01147275]
[1767055596382,0.52156349,87172.0,87161.0,0.02295302]
[1767055596552,0.52156349,87172.0,87162.0,0.01147288]
[1767055596764,0.52156349,87172.0,87160.0,0.01147315]
[1767055596765,0.52156349,87172.0,87163.0,0.01148]
[1767055597128,0.52092749,87172.0,87164.0,0.01147262]
[1767055597337,0.5216714,87174.0,87165.0,0.01147249]
[1767055597556,0.5216714,87174.0,87166.0,0.01147236]
[1767055597764,0.5216714,87174.0,87165.0,0.01147249]
[1767055598157,0.5216714,87174.0,87166.0,1e-08]
[1767055598385,0.5216714,87174.0,87166.0,0.01147237]
[1767055598583,0.5216714,87174.0,87166.0,1e-08]
[1767055599123,0.00010791,87174.0,87166.0,1e-08]
[1767055599302,0.00010791,87174.0,87166.0,0.01147237]
[1767055599532,0.00010791,87174.0,87166.0,1e-08]
[1767055600194,0.00010791,87174.0,87166.0,0.01147237]
[1767055600392,0.00010791,87174.0,87166.0,1e-08]
[1767055601000,0.00010791,87174.0,87165.0,0.01147249]
[1767055601516,0.00010791,87174.0,87166.0,0.01147236]
[1767055602194,0.00010791,87174.0,87166.0,1e-08]
[1767055602818,0.00010791,87174.0,87166.0,0.01147236]
[1767055603137,0.00010791,87174.0,87166.0,1e-08]
[1767055603462,0.01146907,87191.0,87175.0,0.01147117]
[1767055603746,0.02219868,87189.0,87178.0,0.01147078]
[1767055603927,0.01071868,87188.0,87178.0,0.01147078]
[1767055604117,0.01071868,87188.0,87180.0,0.01147052]
[1767055604324,0.01071868,87188.0,87178.0,0.01147078]
[1767055604325,0.01071868,87188.0,87179.0,0.01147065]
[1767055605738,0.1436,87187.0,87171.0,0.05735852]
[1767055605999,0.52156349,87181.0,87169.0,0.01148]
[1767055606180,0.52156349,87181.0,87173.0,0.01147144]
[1767055606500,0.52156349,87183.0,87173.0,0.01147144]
[1767055606711,0.52156349,87183.0,87174.0,0.01147131]
[1767055607263,0.52156349,87183.0,87175.0,0.01147117]
[1767055608147,0.52156349,87185.0,87174.0,0.01147131]
[1767055608356,0.52156349,87185.0,87168.0,0.05736049]
[1767055608566,0.52156349,87180.0,87172.0,0.01147157]
[1767055608767,0.52156349,87182.0,87172.0,0.01147157]
[1767055609184,0.52156349,87182.0,87173.0,0.01147144]
[1767055609820,0.52156349,87182.0,87171.0,0.0114717]
[1767055610468,0.52156349,87182.0,87172.0,0.01147157]
[1767055611089,0.52156349,87182.0,87173.0,0.01147144]
[1767055611257,0.01146973,87186.0,87172.0,0.01147157]
[1767055611670,0.01146986,87185.0,87171.0,0.0114717]
[1767055612324,0.05735589,87175.0,87153.0,0.01147407]
[1767055612522,0.05735589,87175.0,87148.0,0.0001541]
[1767055612523,0.01147249,87165.0,87151.0,0.00700809]
[1767055612642,0.52156349,87161.0,87151.0,0.01848242]
[1767055612854,0.01148,87167.0,87152.0,0.0114742]
[1767055612855,0.01147236,87166.0,87152.0,0.0114742]
[1767055613050,0.52156349,87162.0,87151.0,0.01848242]
[1767055613256,0.01147236,87166.0,87152.0,0.0114742]
[1767055613461,0.12817358,87163.0,87152.0,0.0114742]
[1767055613687,0.12817358,87163.0,87152.0,0.0002599]
[1767055613688,0.52156349,87162.0,87152.0,0.0002599]
[1767055613890,0.12817358,87163.0,87152.0,0.0002599]
[1767055614103,0.12817358,87163.0,87153.0,0.01147407]
[1767055614818,0.12817358,87163.0,87152.0,0.0117341]
[1767055617316,0.12817358,87163.0,87152.0,0.0002599]
[1767055617668,0.52156349,87162.0,87151.0,0.03443211]
[1767055617868,0.52156349,87161.0,87148.0,0.01147473]
[1767055618011,0.000549,87151.0,87148.0,0.01147473]
[1767055618472,0.52156349,87160.0,87148.0,0.01147473]
[1767055618473,0.52156349,87160.0,87149.0,0.0114746]
[1767055618852,0.52156349,87160.0,87148.0,0.01147473]
[1767055619167,0.52156349,87160.0,87149.0,0.0114746]
[1767055620026,0.52156349,87160.0,87148.0,0.04590811]
[1767055620194,0.53304349,87160.0,87148.0,0.04590811]
[1767055620399,0.53304349,87160.0,87149.0,0.0114746]
[1767055620608,0.54451664,87160.0,87148.0,0.03443338]
[1767055620908,0.54451664,87160.0,87147.0,0.01148]
[1767055621131,0.53304349,87160.0,87147.0,0.04591338]
[1767055621281,0.53304349,87160.0,87147.0,0.05738824]
[1767055621491,0.53304349,87160.0,87148.0,0.01147473]
[1767055621694,0.53304349,87160.0,87149.0,0.0114746]
[1767055621893,0.53304349,87160.0,87147.0,0.04591338]
[1767055622122,0.53304349,87160.0,87147.0,0.05738824]
[1767055622270,0.53304349,87160.0,87147.0,0.02295486]
[1767055622686,0.53304349,87160.0,87148.0,0.04590811]
[1767055622891,0.01148,87160.0,87148.0,0.04590811]
[1767055623095,0.53304349,87160.0,87148.0,0.04590811]
[1767055623327,0.53304349,87160.0,87148.0,0.01147473]
[1767055623530,0.53304349,87160.0,87148.0,0.04590811]
[1767055623737,0.01148,87160.0,87148.0,0.03443338]
[1767055623933,0.01148,87160.0,87151.0,0.01147433]
[1767055624997,0.01148,87160.0,87153.0,0.01147407]
[1767055625823,0.01148,87160.0,87150.0,0.53303795]
[1767055626012,0.01148,87160.0,87152.0,0.0114742]
[1767055627828,0.01148,87160.0,87153.0,0.01147407]
[1767055628050,0.01148,87160.0,87151.0,0.01147433]
[1767055628420,0.01147131,87174.0,87154.0,0.01147394]
[1767055628664,0.01147157,87172.0,87157.0,0.01147354]
[1767055629041,0.02218718,87171.0,87157.0,0.01147354]
[1767055629252,0.01071548,87170.0,87157.0,0.01147354]
[1767055629465,0.0114717,87171.0,87157.0,0.01147354]
[1767055629678,0.01071466,87170.0,87158.0,0.01147341]
[1767055629881,0.0114717,87171.0,87157.0,0.01147354]
[1767055630012,0.01071464,87170.0,87157.0,0.01147354]
[1767055630221,0.0114717,87171.0,87157.0,0.01147354]
[1767055630428,0.01071444,87170.0,87157.0,0.01147354]
[1767055630606,0.0114717,87171.0,87157.0,0.01147354]
[1767055630808,0.01071444,87170.0,87157.0,0.01147354]
[1767055631047,0.0001831,87179.0,87161.0,0.05736486]
[1767055631260,4.48e-06,87174.0,87164.0,0.01147262]
[1767055631482,0.01157083,87175.0,87165.0,0.01147249]
[1767055631687,0.01157083,87175.0,87164.0,0.01147262]
[1767055631906,0.01157083,87175.0,87166.0,0.01147236]
[1767055632116,0.01157083,87175.0,87167.0,0.01147223]
[1767055632324,0.01157083,87175.0,87169.0,0.01147196]
[1767055632603,9.083e-05,87175.0,87167.0,0.01147223]
[1767055632842,8.3e-07,87175.0,87172.0,0.01147157]
[1767055633042,8.3e-07,87175.0,87169.0,0.01147196]
[1767055633043,8.3e-07,87175.0,87168.0,0.05736049]
[1767055633171,8.3e-07,87175.0,87170.0,0.01147183]
[1767055633387,8.3e-07,87175.0,87167.0,0.01147223]
[1767055633791,8.3e-07,87175.0,87168.0,0.01147209]
[1767055634890,8.3e-07,87175.0,87169.0,0.01147196]
[1767055635122,8.3e-07,87175.0,87168.0,0.01147209]
[1767055635321,8.3e-07,87175.0,87167.0,0.06883324]
[1767055636191,8.3e-07,87175.0,87167.0,0.01147223]
[1767055636391,8.3e-07,87175.0,87166.0,0.01147236]
[1767055636594,8.3e-07,87175.0,87168.0,0.01147209]
[1767055636800,8.3e-07,87175.0,87167.0,0.01147223]
[1767055637134,8.3e-07,87175.0,87151.0,0.13568]
[1767055637135,0.000549,87167.0,87151.0,0.13568]
[1767055637290,0.00055,87162.0,87156.0,0.01147367]
[1767055637500,0.0114717,87171.0,87157.0,0.01147354]
[1767055637885,0.01147157,87172.0,87158.0,0.01147341]
[1767055638086,0.01147144,87173.0,87158.0,0.01147341]
[1767055638283,0.02295131,87174.0,87158.0,0.0688404]
[1767055638911,0.02295131,87174.0,87158.0,0.01147341]
[1767055639243,0.01147144,87173.0,87158.0,0.01147341]
[1767055639543,0.01147157,87172.0,87159.0,0.01167328]
[1767055639904,0.01147157,87172.0,87159.0,0.0002]
[1767055640113,0.02295131,87174.0,87160.0,0.01147315]
[1767055640313,0.01148,87174.0,87162.0,0.01147288]
[1767055640831,0.01148,87174.0,87163.0,0.01147275]
[1767055641367,0.01148,87174.0,87162.0,0.01147289]
[1767055641797,0.01148,87174.0,87167.0,0.01147223]
[1767055641977,8.3e-07,87175.0,87167.0,0.01147223]
[1767055642181,0.01148,87174.0,87167.0,0.01147223]
[1767055642392,8.3e-07,87175.0,87172.0,1e-08]
[1767055642542,0.01148,87181.0,87175.0,0.01147117]
[1767055642720,0.01148,87181.0,87176.0,0.01147104]
[1767055642926,0.01148,87181.0,87175.0,0.01142959]
[1767055643126,0.01148,87181.0,87176.0,0.01147104]
[1767055643989,0.01148,87183.0,87176.0,0.01147104]
[1767055644190,0.01072696,87182.0,87176.0,0.01147104]
[1767055644413,0.01148,87183.0,87176.0,0.01147104]
[1767055644811,0.01148,87183.0,87172.0,1e-08]
[1767055645030,0.01148,87183.0,87175.0,0.01147117]
[1767055645437,0.01148,87183.0,87174.0,0.01147131]
[1767055645639,0.01148,87183.0,87175.0,0.01147117]
[1767055646250,0.01148,87183.0,87176.0,0.01147104]
[1767055647481,0.01148,87183.0,87177.0,0.01147091]
[1767055647875,0.01148,87185.0,87177.0,0.01147091]
[1767055648481,0.01148,87185.0,87174.0,0.01147131]
[1767055648685,0.01148,87185.0,87175.0,0.01147117]
[1767055648988,0.01148,87185.0,87174.0,0.01147131]
[1767055649374,0.01148,87185.0,87175.0,0.01147117]
[1767055649562,0.01148,87185.0,87174.0,0.01147131]
[1767055650095,0.01148,87185.0,87175.0,0.01147117]
[1767055650300,0.01148,87185.0,87175.0,0.01027609]
[1767055650481,0.01148,87185.0,87175.0,0.01147117]
[1767055651479,0.01148,87185.0,87173.0,0.06882859]
[1767055651684,0.01148,87185.0,87176.0,0.01147104]
[1767055652504,0.01148,87185.0,87176.0,0.01057492]
[1767055653647,0.01148,87185.0,87177.0,0.01147091]
[1767055654396,0.01148,87185.0,87176.0,0.01057492]
[1767055654594,0.01148,87185.0,87174.0,0.01147131]
[1767055655725,0.01148,87185.0,87175.0,0.01147117]
[1767055656917,0.01148,87185.0,87176.0,0.01147104]
[1767055657135,0.01148,87185.0,87177.0,0.01147091]
[1767055657341,0.01148,87185.0,87178.0,0.01147078]
[1767055657520,0.01148,87185.0,87177.0,0.01147091]
[1767055658080,0.01148,87185.0,87178.0,0.01147078]
[1767055658607,0.01148,87185.0,87177.0,0.01147091]
[1767055659332,0.01072644,87184.0,87177.0,0.01147091]
[1767055659544,0.01148,87185.0,87177.0,0.01147091]
[1767055659759,0.000549,87177.0,87175.0,0.01147117]
[1767055659942,0.000549,87177.0,87174.0,0.01147131]
[1767055660183,0.01148,87185.0,87174.0,0.01147131]
[1767055660360,0.01072828,87184.0,87172.0,0.06882886]
[1767055660533,0.01148,87185.0,87174.0,0.01147131]
[1767055660733,0.01072828,87184.0,87174.0,0.01147131]
[1767055660942,0.01148,87185.0,87174.0,0.01147131]
[1767055661112,0.01072823,87184.0,87174.0,0.01147131]
[1767055661319,0.01072823,87183.0,87174.0,0.01147131]
[1767055661532,0.01148,87185.0,87174.0,0.01147131]
[1767055661818,0.01072892,87184.0,87174.0,0.01147131]
[1767055662032,0.01072892,87183.0,87172.0,1e-08]
[1767055662238,0.01073,87182.0,87172.0,1e-08]
[1767055662432,0.01148,87185.0,87172.0,1e-08]